[Event "*** Titled Tuesday 3|2 Blitz"]
[Site "Chess.com"]
[Date "2015.08.04"]
[Round "7"]
[White "NMJeevanK"]
[Black "rhungaski"]
[Result "0-1"]
[WhiteElo "2072"]
[BlackElo "2473"]
[TimeControl "180+2"]
[EndTime "13:03:39 PDT"]
[Termination "rhungaski won by resignation"]

1. e4 {[%clk 0:02:59.2]} 1... e5 {[%clk 0:03:00.4]} 2. Nf3 {[%clk 0:03:00.2]}
2... Nc6 {[%clk 0:03:00.8]} 3. Bb5 {[%clk 0:03:01.2]} 3... a6 {[%clk 0:02:58.1]}
4. Ba4 {[%clk 0:03:02.4]} 4... Nf6 {[%clk 0:02:58.9]} 5. O-O {[%clk 0:03:03.1]}
5... Be7 {[%clk 0:02:59.3]} 6. Re1 {[%clk 0:03:03.6]} 6... b5 {[%clk 0:03:00]}
7. Bb3 {[%clk 0:03:05.3]} 7... d6 {[%clk 0:03:01.5]} 8. c3 {[%clk 0:03:05.2]}
8... O-O {[%clk 0:03:02.6]} 9. h3 {[%clk 0:03:06.6]} 9... Na5 {[%clk 0:03:03.4]}
10. Bc2 {[%clk 0:03:07]} 10... c5 {[%clk 0:03:04.9]} 11. d4 {[%clk 0:03:08.5]}
11... Qc7 {[%clk 0:03:06.1]} 12. Qe2 {[%clk 0:03:07.4]} 12... Nc6 {[%clk
0:03:05.3]} 13. d5 {[%clk 0:03:08.2]} 13... Nd8 {[%clk 0:03:05.9]} 14. Nbd2
{[%clk 0:03:09.6]} 14... Ne8 {[%clk 0:02:59.7]} 15. Nf1 {[%clk 0:03:10.6]} 15...
g6 {[%clk 0:02:59.6]} 16. Ng3 {[%clk 0:03:10.3]} 16... f6 {[%clk 0:02:57.9]} 17.
Bh6 {[%clk 0:03:00.2]} 17... Ng7 {[%clk 0:02:58]} 18. Nh2 {[%clk 0:02:56.6]}
18... Nf7 {[%clk 0:02:56.9]} 19. Bxg7 {[%clk 0:02:50.6]} 19... Kxg7 {[%clk
0:02:58.8]} 20. Rf1 {[%clk 0:02:51.1]} 20... Bd7 {[%clk 0:02:56.7]} 21. f4
{[%clk 0:02:51.4]} 21... exf4 {[%clk 0:02:57.3]} 22. Rxf4 {[%clk 0:02:51.8]}
22... Ne5 {[%clk 0:02:56.2]} 23. Raf1 {[%clk 0:02:51.9]} 23... Rf7 {[%clk
0:02:46.4]} 24. Rh4 {[%clk 0:02:14.1]} 24... f5 {[%clk 0:02:39.6]} 25. Rhf4
{[%clk 0:02:06.3]} 25... Bg5 {[%clk 0:02:35.7]} 26. exf5 {[%clk 0:02:04.7]}
26... Bxf4 {[%clk 0:02:36.2]} 27. Rxf4 {[%clk 0:02:06.6]} 27... Raf8 {[%clk
0:02:32.7]} 28. Nf3 {[%clk 0:01:53.1]} 28... Nxf3+ {[%clk 0:02:29.9]} 29. Qxf3
{[%clk 0:01:49.7]} 29... Qd8 {[%clk 0:01:54.3]} 30. Qg4 {[%clk 0:01:42.9]} 30...
Kh8 {[%clk 0:01:53.6]} 31. a4 {[%clk 0:01:24.9]} 31... bxa4 {[%clk 0:01:47.5]}
32. Bxa4 {[%clk 0:01:25.1]} 32... Bxf5 {[%clk 0:01:42.1]} 33. Nxf5 {[%clk
0:00:42.4]} 33... Rxf5 {[%clk 0:01:44]} 34. Re4 {[%clk 0:00:41.4]} 34... Qf6
{[%clk 0:00:40.5]} 35. Bc6 {[%clk 0:00:22.9]} 35... Rf4 {[%clk 0:00:28.1]} 36.
Rxf4 {[%clk 0:00:20.3]} 36... Qxf4 {[%clk 0:00:30]} 37. Qe2 {[%clk 0:00:21.8]}
37... a5 {[%clk 0:00:24.7]} 38. c4 {[%clk 0:00:17]} 38... Kg7 {[%clk 0:00:22.2]}
39. b3 {[%clk 0:00:17.3]} 39... h5 {[%clk 0:00:20.2]} 40. Qe7+ {[%clk 0:00:17]}
40... Rf7 {[%clk 0:00:20.9]} 41. Qe2 {[%clk 0:00:18.7]} 41... Qd4+ {[%clk
0:00:19.5]} 42. Kh2 {[%clk 0:00:18.8]} 42... h4 {[%clk 0:00:20.7]} 43. Be8
{[%clk 0:00:15.1]} 43... Qf4+ {[%clk 0:00:20.7]} 44. Kg1 {[%clk 0:00:14.2]}
44... Rf8 {[%clk 0:00:18.9]} 45. Qe7+ {[%clk 0:00:14.1]} 45... Kh6 {[%clk
0:00:20.4]} 46. Bd7 {[%clk 0:00:08.7]} 46... Qf2+ {[%clk 0:00:19.9]} 47. Kh2
{[%clk 0:00:09.4]} 47... Qf4+ {[%clk 0:00:20.4]} 48. Kg1 {[%clk 0:00:10.6]}
48... Qf6 {[%clk 0:00:20.7]} 49. Qe3+ {[%clk 0:00:10.5]} 49... g5 {[%clk
0:00:21.6]} 50. Bg4 {[%clk 0:00:11]} 50... Qd4 {[%clk 0:00:22.5]} 51. Qxd4
{[%clk 0:00:11.6]} 51... cxd4 {[%clk 0:00:24.4]} 52. Bf3 {[%clk 0:00:13.5]}
52... Rb8 {[%clk 0:00:23.2]} 53. Bd1 {[%clk 0:00:14.7]} 53... a4 {[%clk
0:00:23.7]} 54. Kf2 {[%clk 0:00:11.9]} 54... a3 {[%clk 0:00:23.8]} 55. c5 {[%clk
0:00:11.9]} 55... dxc5 {[%clk 0:00:23.1]} 56. d6 {[%clk 0:00:12.7]} 56... a2
{[%clk 0:00:24]} 57. d7 {[%clk 0:00:13.9]} 57... Rd8 {[%clk 0:00:24.3]} 0-1

[Event "*** Titled Tuesday 3|2 Blitz"]
[Site "Chess.com"]
[Date "2015.08.04"]
[Round "7"]
[White "Krutoy123"]
[Black "Just-Live-Simply"]
[Result "1-0"]
[WhiteElo "2134"]
[BlackElo "2021"]
[TimeControl "180+2"]
[EndTime "13:04:22 PDT"]
[Termination "Krutoy123 won by checkmate"]

1. e4 {[%clk 0:02:55.1]} 1... e6 {[%clk 0:02:59.4]} 2. d4 {[%clk 0:02:55.4]}
2... d5 {[%clk 0:03:00.2]} 3. Nc3 {[%clk 0:02:56.8]} 3... Bb4 {[%clk 0:03:00.7]}
4. e5 {[%clk 0:02:56.8]} 4... Ne7 {[%clk 0:02:58.7]} 5. a3 {[%clk 0:02:58]} 5...
Bxc3+ {[%clk 0:02:59.9]} 6. bxc3 {[%clk 0:02:59.9]} 6... c5 {[%clk 0:03:01.2]}
7. Nf3 {[%clk 0:03:01.6]} 7... b6 {[%clk 0:03:01.8]} 8. h4 {[%clk 0:03:02.7]}
8... Ba6 {[%clk 0:03:01.4]} 9. Bxa6 {[%clk 0:03:02.7]} 9... Nxa6 {[%clk
0:03:03.2]} 10. h5 {[%clk 0:03:04.6]} 10... h6 {[%clk 0:03:04]} 11. O-O {[%clk
0:03:06.2]} 11... Nb8 {[%clk 0:02:59.3]} 12. dxc5 {[%clk 0:03:07]} 12... bxc5
{[%clk 0:02:59.6]} 13. c4 {[%clk 0:03:08.9]} 13... Nbc6 {[%clk 0:02:59.3]} 14.
cxd5 {[%clk 0:03:09]} 14... Qxd5 {[%clk 0:03:01.2]} 15. Qe2 {[%clk 0:03:10.1]}
15... Nd4 {[%clk 0:02:53.6]} 16. Nxd4 {[%clk 0:03:08]} 16... cxd4 {[%clk
0:02:55.2]} 17. Rd1 {[%clk 0:03:08.7]} 17... O-O {[%clk 0:02:54.9]} 18. c3
{[%clk 0:03:09]} 18... Nf5 {[%clk 0:02:55]} 19. cxd4 {[%clk 0:03:09.7]} 19...
Rfd8 {[%clk 0:02:42.9]} 20. Be3 {[%clk 0:03:10.2]} 20... Rac8 {[%clk 0:02:42.4]}
21. Rac1 {[%clk 0:02:56.9]} 21... Rxc1 {[%clk 0:02:32.5]} 22. Rxc1 {[%clk
0:02:58.8]} 22... Nxd4 {[%clk 0:02:33.1]} 23. Bxd4 {[%clk 0:02:59.6]} 23... Qxd4
{[%clk 0:02:34.9]} 24. g3 {[%clk 0:02:53.6]} 24... Qd3 {[%clk 0:02:30.1]} 25.
Qb2 {[%clk 0:02:48.1]} 25... Qf3 {[%clk 0:02:27.5]} 26. Qc2 {[%clk 0:02:32]}
26... Qxh5 {[%clk 0:02:24.3]} 27. Qc7 {[%clk 0:02:32.9]} 27... Rf8 {[%clk
0:02:24.3]} 28. a4 {[%clk 0:02:30.2]} 28... Qe2 {[%clk 0:02:14]} 29. Qxa7 {[%clk
0:02:29.4]} 29... Qxe5 {[%clk 0:02:14.5]} 30. a5 {[%clk 0:02:30.5]} 30... Qb8
{[%clk 0:02:07.3]} 31. Qc5 {[%clk 0:02:30.8]} 31... Qb7 {[%clk 0:02:07.5]} 32.
Qd6 {[%clk 0:02:29.5]} 32... Ra8 {[%clk 0:02:06.3]} 33. Rc5 {[%clk 0:02:29.8]}
33... Qa6 {[%clk 0:02:05.7]} 34. Qd7 {[%clk 0:02:29.2]} 34... Ra7 {[%clk
0:01:58.4]} 35. Qd8+ {[%clk 0:02:29.2]} 35... Kh7 {[%clk 0:01:59.1]} 36. Qd2
{[%clk 0:02:16.3]} 36... Ra8 {[%clk 0:01:48.5]} 37. Qc2+ {[%clk 0:02:17.4]}
37... Kg8 {[%clk 0:01:49]} 38. Qc3 {[%clk 0:02:18]} 38... Qb7 {[%clk 0:01:45.8]}
39. Rc7 {[%clk 0:02:16.4]} 39... Qd5 {[%clk 0:01:41.5]} 40. Rc5 {[%clk
0:02:14.9]} 40... Qb7 {[%clk 0:01:41.4]} 41. Qe5 {[%clk 0:02:15.9]} 41... Rd8
{[%clk 0:01:40]} 42. Rc1 {[%clk 0:02:11.9]} 42... Rd5 {[%clk 0:01:36.9]} 43. Qc3
{[%clk 0:02:07.4]} 43... Rh5 {[%clk 0:01:24.2]} 44. f3 {[%clk 0:02:04.7]} 44...
Qb8 {[%clk 0:01:19.2]} 45. Kg2 {[%clk 0:02:05.2]} 45... Rg5 {[%clk 0:01:19.5]}
46. f4 {[%clk 0:02:04.2]} 46... Qb7+ {[%clk 0:01:16.8]} 47. Kf2 {[%clk
0:02:03.8]} 47... Rb5 {[%clk 0:01:15.7]} 48. Rd1 {[%clk 0:02:00.6]} 48... Rb2+
{[%clk 0:01:11.1]} 49. Rd2 {[%clk 0:01:57.6]} 49... Rxd2+ {[%clk 0:01:07.7]} 50.
Qxd2 {[%clk 0:01:59.5]} 50... Qa6 {[%clk 0:01:07.9]} 51. Qb4 {[%clk 0:01:54.9]}
51... Qa7+ {[%clk 0:01:07.5]} 52. Qb6 {[%clk 0:01:55.1]} 52... Qd7 {[%clk
0:01:04.8]} 53. Ke3 {[%clk 0:01:55.6]} 53... Qa4 {[%clk 0:01:01.7]} 54. a6
{[%clk 0:01:56.5]} 54... Qa3+ {[%clk 0:01:02.8]} 55. Kd4 {[%clk 0:01:56.9]}
55... Qa1+ {[%clk 0:01:03.8]} 56. Kc5 {[%clk 0:01:57.6]} 56... Qc3+ {[%clk
0:01:04.7]} 57. Kd6 {[%clk 0:01:58.6]} 57... Qd3+ {[%clk 0:01:02.3]} 58. Ke7
{[%clk 0:01:59.6]} 58... Kh7 {[%clk 0:00:54.8]} 59. a7 {[%clk 0:01:59.8]} 59...
Qd5 {[%clk 0:00:53]} 60. Qa6 {[%clk 0:01:57]} 60... Qc5+ {[%clk 0:00:47.1]} 61.
Kxf7 {[%clk 0:01:56.8]} 61... Qc7+ {[%clk 0:00:43.8]} 62. Kxe6 {[%clk
0:01:57.6]} 62... Qc3 {[%clk 0:00:23.1]} 63. a8=Q {[%clk 0:01:56.1]} 63... Qe3+
{[%clk 0:00:24.6]} 64. Kd6 {[%clk 0:01:57]} 64... Qd4+ {[%clk 0:00:25.5]} 65.
Qd5 {[%clk 0:01:57.3]} 65... Qf6+ {[%clk 0:00:23.1]} 66. Qe6 {[%clk 0:01:52]}
66... Qd4+ {[%clk 0:00:20.8]} 67. Kc7 {[%clk 0:01:39.7]} 67... Qc5+ {[%clk
0:00:21.4]} 68. Kd8 {[%clk 0:01:28.3]} 68... Qf8+ {[%clk 0:00:21.1]} 69. Qe8
{[%clk 0:01:20.4]} 69... Qf5 {[%clk 0:00:17.3]} 70. Qae6 {[%clk 0:01:10.3]}
70... Qd3+ {[%clk 0:00:16.8]} 71. Q8d7 {[%clk 0:01:10.7]} 71... Qb1 {[%clk
0:00:13.8]} 72. Qf5+ {[%clk 0:01:11.6]} 72... Qxf5 {[%clk 0:00:14]} 73. Qxf5+
{[%clk 0:01:13.5]} 73... Kh8 {[%clk 0:00:14.8]} 74. Ke8 {[%clk 0:01:13.8]} 74...
Kg8 {[%clk 0:00:14.3]} 75. g4 {[%clk 0:01:13.8]} 75... Kh8 {[%clk 0:00:14.6]}
76. g5 {[%clk 0:01:14.4]} 76... h5 {[%clk 0:00:15.1]} 77. g6 {[%clk 0:01:14.8]}
77... Kg8 {[%clk 0:00:16.4]} 78. Qf8# {[%clk 0:01:16.7]} 1-0

[Event "*** Titled Tuesday 3|2 Blitz"]
[Site "Chess.com"]
[Date "2015.08.04"]
[Round "7"]
[White "arnacman"]
[Black "dabee"]
[Result "0-1"]
[WhiteElo "2240"]
[BlackElo "2445"]
[TimeControl "180+2"]
[EndTime "13:04:29 PDT"]
[Termination "dabee won by resignation"]

1. e4 {[%clk 0:03:01.9]} 1... e5 {[%clk 0:02:53.8]} 2. Bc4 {[%clk 0:03:01.9]}
2... Nf6 {[%clk 0:02:53.9]} 3. d3 {[%clk 0:03:02.7]} 3... h6 {[%clk 0:02:44.2]}
4. Nf3 {[%clk 0:03:03]} 4... Nc6 {[%clk 0:02:44.1]} 5. c3 {[%clk 0:03:02.2]}
5... g6 {[%clk 0:02:42.5]} 6. O-O {[%clk 0:03:01.7]} 6... Bg7 {[%clk 0:02:43]}
7. Re1 {[%clk 0:03:00.9]} 7... O-O {[%clk 0:02:42.9]} 8. Bb3 {[%clk 0:03:00.8]}
8... d5 {[%clk 0:02:38.8]} 9. exd5 {[%clk 0:02:57.6]} 9... Nxd5 {[%clk 0:02:39]}
10. Na3 {[%clk 0:02:54]} 10... Re8 {[%clk 0:02:37.7]} 11. Nc4 {[%clk 0:02:50.2]}
11... Kh7 {[%clk 0:02:33.3]} 12. h3 {[%clk 0:02:45.9]} 12... f5 {[%clk
0:02:32.9]} 13. Ne3 {[%clk 0:02:36.4]} 13... Nf4 {[%clk 0:02:30.5]} 14. d4
{[%clk 0:02:13.6]} 14... e4 {[%clk 0:02:16]} 15. Nh2 {[%clk 0:01:52.1]} 15...
Nd3 {[%clk 0:02:15.2]} 16. Rf1 {[%clk 0:01:37.4]} 16... f4 {[%clk 0:02:13.1]}
17. Nc4 {[%clk 0:01:36.9]} 17... Qg5 {[%clk 0:01:59]} 18. Kh1 {[%clk 0:01:18.6]}
18... Qh4 {[%clk 0:01:45.4]} 19. Qe2 {[%clk 0:00:38.1]} 19... f3 {[%clk
0:01:39.5]} 20. Nxf3 {[%clk 0:00:37]} 20... exf3 {[%clk 0:01:34]} 21. Qxd3
{[%clk 0:00:36.5]} 21... fxg2+ {[%clk 0:01:29.4]} 22. Kxg2 {[%clk 0:00:36.1]}
22... Rf8 {[%clk 0:00:53.8]} 23. Bd2 {[%clk 0:00:29.1]} 23... Ne7 {[%clk
0:00:45.4]} 24. Ne5 {[%clk 0:00:20.1]} 24... Nf5 {[%clk 0:00:30.9]} 25. Rae1
{[%clk 0:00:20.1]} 25... Qh5 {[%clk 0:00:24.6]} 26. Re4 {[%clk 0:00:20.3]} 26...
Nh4+ {[%clk 0:00:23]} 27. Kh2 {[%clk 0:00:20.2]} 27... Bf5 {[%clk 0:00:22.2]}
28. Bd1 {[%clk 0:00:18.9]} 28... Bxe5+ {[%clk 0:00:14]} 29. dxe5 {[%clk
0:00:17.8]} 29... Bxe4 {[%clk 0:00:14.3]} 30. Qxe4 {[%clk 0:00:18.6]} 30... Nf3+
{[%clk 0:00:14.6]} 31. Bxf3 {[%clk 0:00:17.7]} 31... Rxf3 {[%clk 0:00:15.3]} 32.
Qg4 {[%clk 0:00:16.9]} 32... Qxe5+ {[%clk 0:00:13.5]} 33. Kg2 {[%clk 0:00:16.4]}
33... Raf8 {[%clk 0:00:12.1]} 34. Be3 {[%clk 0:00:17.1]} 34... Qd5 {[%clk
0:00:12.4]} 35. Kg1 {[%clk 0:00:16.7]} 35... h5 {[%clk 0:00:12.8]} 36. Qg2
{[%clk 0:00:16.5]} 36... Qf5 {[%clk 0:00:11.7]} 37. Kh2 {[%clk 0:00:16.8]} 37...
Qe5+ {[%clk 0:00:12.6]} 38. Kg1 {[%clk 0:00:17]} 38... Qe6 {[%clk 0:00:12.6]}
39. Kh2 {[%clk 0:00:15.7]} 39... Qd6+ {[%clk 0:00:12.3]} 40. Kg1 {[%clk
0:00:16.3]} 40... Qe6 {[%clk 0:00:12.8]} 41. Rd1 {[%clk 0:00:16.8]} 41... Qxa2
{[%clk 0:00:14.7]} 42. Rd7+ {[%clk 0:00:16.8]} 42... R3f7 {[%clk 0:00:15.6]} 43.
Rxf7+ {[%clk 0:00:17.4]} 43... Rxf7 {[%clk 0:00:15.7]} 44. Qg5 {[%clk
0:00:17.6]} 44... Qe6 {[%clk 0:00:16.2]} 45. Bxa7 {[%clk 0:00:13.7]} 45... Qxh3
{[%clk 0:00:16]} 46. Qe5 {[%clk 0:00:10.2]} 46... Qg4+ {[%clk 0:00:16.3]} 47.
Kf1 {[%clk 0:00:11.1]} 47... b6 {[%clk 0:00:17.3]} 48. Bb8 {[%clk 0:00:11.5]}
48... Qf3 {[%clk 0:00:17.4]} 49. Qd4 {[%clk 0:00:11.1]} 49... Qh1+ {[%clk
0:00:17.1]} 50. Ke2 {[%clk 0:00:11.6]} 50... Re7+ {[%clk 0:00:19]} 51. Kd2
{[%clk 0:00:12.5]} 51... Qe1+ {[%clk 0:00:19.6]} 52. Kc2 {[%clk 0:00:13.1]}
52... Qe2+ {[%clk 0:00:20.6]} 53. Kb3 {[%clk 0:00:13.5]} 53... Qb5+ {[%clk
0:00:21.3]} 54. Ka2 {[%clk 0:00:12.5]} 54... Qa6+ {[%clk 0:00:21.1]} 55. Kb3
{[%clk 0:00:12.7]} 55... Qb5+ {[%clk 0:00:20.8]} 56. Ka2 {[%clk 0:00:13.1]}
56... Qd7 {[%clk 0:00:22.3]} 57. Qf4 {[%clk 0:00:10.7]} 57... Qc8 {[%clk
0:00:20]} 58. Qf6 {[%clk 0:00:07.9]} 58... Rg7 {[%clk 0:00:20]} 59. Ba7 {[%clk
0:00:05]} 59... Qa6+ {[%clk 0:00:20.7]} 60. Kb3 {[%clk 0:00:06.3]} 60... Qxa7
{[%clk 0:00:21.7]} 61. f4 {[%clk 0:00:07.6]} 61... Qa5 {[%clk 0:00:21.7]} 62. c4
{[%clk 0:00:08.4]} 62... Qf5 {[%clk 0:00:22.4]} 0-1

[Event "*** Titled Tuesday 3|2 Blitz"]
[Site "Chess.com"]
[Date "2015.08.04"]
[Round "8"]
[White "AnthonyWirig"]
[Black "jefferyx"]
[Result "0-1"]
[WhiteElo "2497"]
[BlackElo "2459"]
[TimeControl "180+2"]
[EndTime "13:10:15 PDT"]
[Termination "jefferyx won by resignation"]

1. d4 {[%clk 0:03:01.9]} 1... b5 {[%clk 0:03:00.7]} 2. e4 {[%clk 0:03:01.5]}
2... a6 {[%clk 0:03:02]} 3. a4 {[%clk 0:03:00.6]} 3... b4 {[%clk 0:03:01.7]} 4.
c4 {[%clk 0:03:01.8]} 4... Bb7 {[%clk 0:03:01.8]} 5. d5 {[%clk 0:03:02.3]} 5...
e6 {[%clk 0:03:02.1]} 6. Nf3 {[%clk 0:03:01.1]} 6... Bc5 {[%clk 0:03:02.6]} 7.
Nbd2 {[%clk 0:03:00.3]} 7... Nf6 {[%clk 0:03:00.6]} 8. Nb3 {[%clk 0:02:59.9]}
8... Nxe4 {[%clk 0:02:59.3]} 9. Nxc5 {[%clk 0:03:00.7]} 9... Nxc5 {[%clk
0:03:01.2]} 10. Qd4 {[%clk 0:02:59.4]} 10... Nb3 {[%clk 0:02:59.6]} 11. Qxg7
{[%clk 0:02:59.6]} 11... Rf8 {[%clk 0:02:54.9]} 12. Bh6 {[%clk 0:02:58.7]} 12...
Qe7 {[%clk 0:02:55]} 13. Qxf8+ {[%clk 0:02:55.4]} 13... Qxf8 {[%clk 0:02:56.2]}
14. Bxf8 {[%clk 0:02:56.8]} 14... Nxa1 {[%clk 0:02:57.7]} 15. Bxb4 {[%clk
0:02:52.9]} 15... Nc2+ {[%clk 0:02:57.9]} 16. Kd2 {[%clk 0:02:54.4]} 16... Nxb4
{[%clk 0:02:59.3]} 17. Kc3 {[%clk 0:02:51.7]} 17... a5 {[%clk 0:03:00]} 18. Kd4
{[%clk 0:02:52.6]} 18... exd5 {[%clk 0:03:00.3]} 19. cxd5 {[%clk 0:02:54.5]}
19... Bxd5 {[%clk 0:03:01.4]} 20. Bb5 {[%clk 0:02:53.4]} 20... Bxf3 {[%clk
0:02:57.8]} 21. gxf3 {[%clk 0:02:51]} 21... N8c6+ {[%clk 0:02:58.6]} 22. Ke4
{[%clk 0:02:51.6]} 22... Kf8 {[%clk 0:02:59]} 23. Kf5 {[%clk 0:02:52.8]} 23...
Re8 {[%clk 0:02:59.6]} 24. Rg1 {[%clk 0:02:53.6]} 24... Re5+ {[%clk 0:03:00.2]}
25. Kg4 {[%clk 0:02:53]} 25... Ke7 {[%clk 0:02:54.8]} 26. f4 {[%clk 0:02:54.3]}
26... h5+ {[%clk 0:02:36.8]} 27. Kg3 {[%clk 0:02:51.2]} 27... Rf5 {[%clk
0:02:37.5]} 28. Rd1 {[%clk 0:02:48.8]} 28... Rd5 {[%clk 0:02:27.9]} 29. Re1+
{[%clk 0:02:47.2]} 29... Kf6 {[%clk 0:02:29.1]} 30. Re8 {[%clk 0:02:47.9]} 30...
Nd4 {[%clk 0:02:24.1]} 31. Bc4 {[%clk 0:02:45.7]} 31... Rc5 {[%clk 0:02:24.7]}
32. b3 {[%clk 0:02:45.9]} 32... d5 {[%clk 0:02:23.3]} 33. Bf1 {[%clk 0:02:45.7]}
33... Rc3+ {[%clk 0:02:20.3]} 34. Kh4 {[%clk 0:02:46.9]} 34... Nf5+ {[%clk
0:02:20.8]} 35. Kxh5 {[%clk 0:02:48]} 35... Ng7+ {[%clk 0:02:22.7]} 36. Kg4
{[%clk 0:02:48.8]} 36... Nxe8 {[%clk 0:02:24.6]} 0-1

[Event "*** Titled Tuesday 3|2 Blitz"]
[Site "Chess.com"]
[Date "2015.08.04"]
[Round "8"]
[White "Chesseducation4u"]
[Black "Keaton87"]
[Result "1-0"]
[WhiteElo "2486"]
[BlackElo "2428"]
[TimeControl "180+2"]
[EndTime "13:11:10 PDT"]
[Termination "Chesseducation4u won by resignation"]

1. Nf3 {[%clk 0:02:59.6]} 1... Nf6 {[%clk 0:02:11.4]} 2. g3 {[%clk 0:02:59.8]}
2... g6 {[%clk 0:02:12.6]} 3. b3 {[%clk 0:03:01.4]} 3... Bg7 {[%clk 0:02:14]} 4.
Bb2 {[%clk 0:03:03.3]} 4... O-O {[%clk 0:02:15.5]} 5. Bg2 {[%clk 0:03:04.9]}
5... d5 {[%clk 0:02:16.9]} 6. O-O {[%clk 0:03:05.1]} 6... c5 {[%clk 0:02:17]} 7.
c4 {[%clk 0:03:06.7]} 7... Nc6 {[%clk 0:02:14.8]} 8. cxd5 {[%clk 0:03:06.4]}
8... Nxd5 {[%clk 0:02:16]} 9. Bxg7 {[%clk 0:03:08.3]} 9... Kxg7 {[%clk
0:02:16.7]} 10. Qc2 {[%clk 0:03:10.2]} 10... b6 {[%clk 0:02:11.8]} 11. d4 {[%clk
0:03:10.4]} 11... Nxd4 {[%clk 0:02:04.7]} 12. Qb2 {[%clk 0:03:11.4]} 12... f6
{[%clk 0:02:03.5]} 13. Rd1 {[%clk 0:03:03]} 13... Bb7 {[%clk 0:01:18]} 14. Nxd4
{[%clk 0:02:45.5]} 14... cxd4 {[%clk 0:01:18.5]} 15. Rxd4 {[%clk 0:02:47.4]}
15... e5 {[%clk 0:01:04.8]} 16. Rd1 {[%clk 0:02:34.8]} 16... Rf7 {[%clk
0:00:50.3]} 17. e4 {[%clk 0:02:19.4]} 1-0

[Event "*** Titled Tuesday 3|2 Blitz"]
[Site "Chess.com"]
[Date "2015.08.04"]
[Round "8"]
[White "BIG_Pirate"]
[Black "pedromartinez91"]
[Result "0-1"]
[WhiteElo "2249"]
[BlackElo "2138"]
[TimeControl "180+2"]
[EndTime "13:12:14 PDT"]
[Termination "pedromartinez91 won by resignation"]

1. Nf3 {[%clk 0:03:01.3]} 1... d5 {[%clk 0:03:00.2]} 2. c4 {[%clk 0:03:02.3]}
2... Nc6 {[%clk 0:03:01.5]} 3. cxd5 {[%clk 0:03:03.2]} 3... Qxd5 {[%clk
0:03:02.9]} 4. Nc3 {[%clk 0:03:04.7]} 4... Qd8 {[%clk 0:03:04.4]} 5. g3 {[%clk
0:03:05.4]} 5... e5 {[%clk 0:03:04.4]} 6. Bg2 {[%clk 0:03:02.3]} 6... Nf6 {[%clk
0:03:05.7]} 7. d3 {[%clk 0:03:03.4]} 7... Bd6 {[%clk 0:03:07.2]} 8. O-O {[%clk
0:03:01.5]} 8... h6 {[%clk 0:03:08.6]} 9. a3 {[%clk 0:02:59.7]} 9... O-O {[%clk
0:03:09.6]} 10. b4 {[%clk 0:03:00.8]} 10... Nd4 {[%clk 0:03:07.8]} 11. Bb2
{[%clk 0:02:59.6]} 11... Nxf3+ {[%clk 0:03:05.9]} 12. Bxf3 {[%clk 0:03:00.2]}
12... c6 {[%clk 0:03:07.5]} 13. Bg2 {[%clk 0:02:59.1]} 13... Bg4 {[%clk
0:03:06.2]} 14. h3 {[%clk 0:02:52.2]} 14... Be6 {[%clk 0:03:06.1]} 15. Qc2
{[%clk 0:02:38.7]} 15... Qd7 {[%clk 0:03:06.6]} 16. Kh2 {[%clk 0:02:40]} 16...
a5 {[%clk 0:03:07.2]} 17. b5 {[%clk 0:02:36.4]} 17... cxb5 {[%clk 0:03:05.2]}
18. Qd2 {[%clk 0:02:13.5]} 18... b4 {[%clk 0:03:04]} 19. Ne4 {[%clk 0:02:05.7]}
19... Nxe4 {[%clk 0:02:59.9]} 20. Bxe4 {[%clk 0:02:01.2]} 20... Ra7 {[%clk
0:02:58.2]} 21. Bg2 {[%clk 0:01:58.5]} 21... b5 {[%clk 0:02:55.4]} 22. Rfc1
{[%clk 0:01:52.8]} 22... bxa3 {[%clk 0:02:55.9]} 23. Bxa3 {[%clk 0:01:48.6]}
23... b4 {[%clk 0:02:57]} 24. Bb2 {[%clk 0:01:31.5]} 24... a4 {[%clk 0:02:58.1]}
25. d4 {[%clk 0:01:27.4]} 25... a3 {[%clk 0:02:58.1]} 26. dxe5 {[%clk
0:01:27.2]} 26... axb2 {[%clk 0:02:58.5]} 27. Qxb2 {[%clk 0:01:26.1]} 27... Rxa1
{[%clk 0:02:51.2]} 28. Rxa1 {[%clk 0:01:25.7]} 28... Be7 {[%clk 0:02:51.2]} 29.
f4 {[%clk 0:01:19.3]} 29... b3 {[%clk 0:02:49.9]} 30. e4 {[%clk 0:01:20.1]}
30... Bc5 {[%clk 0:02:48.6]} 31. Re1 {[%clk 0:00:50.5]} 31... Qd4 {[%clk
0:02:43.9]} 32. Qe2 {[%clk 0:00:43.7]} 32... Bc4 {[%clk 0:02:43.4]} 33. Qg4
{[%clk 0:00:44.2]} 33... b2 {[%clk 0:02:35.5]} 34. f5 {[%clk 0:00:44.9]} 34...
Qxe5 {[%clk 0:02:34.8]} 0-1

[Event "*** Titled Tuesday 3|2 Blitz"]
[Site "Chess.com"]
[Date "2015.08.04"]
[Round "8"]
[White "LyonBeast"]
[Black "SenseiJulio"]
[Result "0-1"]
[WhiteElo "2677"]
[BlackElo "2605"]
[TimeControl "180+2"]
[EndTime "13:12:24 PDT"]
[Termination "SenseiJulio won by resignation"]

1. e4 {[%clk 0:03:01.9]} 1... e6 {[%clk 0:02:58.5]} 2. d4 {[%clk 0:03:02.3]}
2... d5 {[%clk 0:02:56.7]} 3. Nc3 {[%clk 0:03:03.3]} 3... Nf6 {[%clk 0:02:57.2]}
4. e5 {[%clk 0:03:03.3]} 4... Nfd7 {[%clk 0:02:58]} 5. f4 {[%clk 0:03:04.8]}
5... c5 {[%clk 0:02:59.4]} 6. Nf3 {[%clk 0:03:03.4]} 6... Nc6 {[%clk 0:03:00.9]}
7. Be3 {[%clk 0:03:03.3]} 7... Be7 {[%clk 0:03:01.7]} 8. Qd2 {[%clk 0:03:03.6]}
8... O-O {[%clk 0:03:03.3]} 9. O-O-O {[%clk 0:03:03.5]} 9... c4 {[%clk
0:03:03.8]} 10. f5 {[%clk 0:03:02.4]} 10... b5 {[%clk 0:03:04.3]} 11. Kb1 {[%clk
0:02:58.6]} 11... b4 {[%clk 0:02:59.8]} 12. f6 {[%clk 0:02:59.4]} 12... gxf6
{[%clk 0:02:48.4]} 13. Ne2 {[%clk 0:03:00.1]} 13... fxe5 {[%clk 0:02:46.4]} 14.
dxe5 {[%clk 0:02:59.7]} 14... Ndxe5 {[%clk 0:02:43.7]} 15. Bh6 {[%clk
0:02:58.3]} 15... Ng4 {[%clk 0:02:27]} 16. Ng3 {[%clk 0:02:53.9]} 16... c3
{[%clk 0:02:10.3]} 17. Qf4 {[%clk 0:02:43.1]} 17... e5 {[%clk 0:02:11.6]} 18.
Nxe5 {[%clk 0:02:42.9]} 18... Ncxe5 {[%clk 0:02:09.8]} 19. Bxf8 {[%clk
0:02:38.8]} 19... Bxf8 {[%clk 0:02:01.8]} 20. Be2 {[%clk 0:02:34.6]} 20... Qf6
{[%clk 0:01:33]} 21. Qd4 {[%clk 0:02:31.1]} 21... Qb6 {[%clk 0:01:05.3]} 22.
Rhe1 {[%clk 0:02:08.3]} 22... Qxd4 {[%clk 0:01:00.8]} 23. Rxd4 {[%clk
0:02:10.2]} 23... Ne3 {[%clk 0:00:53.3]} 24. Bf3 {[%clk 0:01:55.9]} 24... Nxf3
{[%clk 0:00:49.7]} 25. gxf3 {[%clk 0:01:57.8]} 25... Bc5 {[%clk 0:00:50.4]} 26.
Rd3 {[%clk 0:01:57.4]} 26... d4 {[%clk 0:00:48.3]} 27. Ne4 {[%clk 0:01:51.8]}
27... Bb6 {[%clk 0:00:49]} 28. Rg1+ {[%clk 0:01:50.6]} 28... Kf8 {[%clk
0:00:50.1]} 29. Nf6 {[%clk 0:01:48.2]} 29... Bf5 {[%clk 0:00:50.9]} 30. Rg8+
{[%clk 0:01:48]} 30... Ke7 {[%clk 0:00:51.5]} 31. Rxa8 {[%clk 0:01:49.9]} 31...
Kxf6 {[%clk 0:00:50.4]} 0-1